Workbook

Sheet Sheet1
A1: 附件
A2: 2020年度防城港市市直中小学教师公开招聘第一批拟聘用人员名单（共59人）
A3: 序号 | B3: 姓名 | C3: 性别 | D3: 准考证号 | E3: 招聘单位 | F3: 招聘岗位 | G3: 招聘岗位代码 | H3: 招聘 人数 | I3: 笔试成绩 | J3: 面试成绩 | K3: 考试总成绩 | L3: 排名 | M3: 备注
A4: 1 | B4: 韦丽珍 | C4: 女 | D4: 450603420 | E4: 防城港市北部湾高级中学 | F4: 高中语文教师 | G4: 4506000101 | H4: 3 | I4: 156.5 | J4: 81.40 | K4: =I4/2*0.4+J4*0.6 -> 80.14 | L4: 1
A5: 2 | B5: 黎成成 | C5: 女 | D5: 450607907 | E5: 防城港市北部湾高级中学 | F5: 高中语文教师 | G5: 4506000101 | H5: 3 | I5: 145.0 | J5: 80.60 | K5: 77.36 | L5: 2
A6: 3 | B6: 王璐 | C6: 女 | D6: 450603504 | E6: 防城港市北部湾高级中学 | F6: 高中语文教师 | G6: 4506000101 | H6: 3 | I6: 125.0 | J6: 83.00 | K6: 74.80 | L6: 3
A7: 4 | B7: 潘春燕 | C7: 女 | D7: 450602914 | E7: 防城港市北部湾高级中学 | F7: 高中英语教师 | G7: 4506000103 | H7: 2 | I7: 141.5 | J7: 79.60 | K7: 76.06 | L7: 1
A8: 5 | B8: 韩一菲 | C8: 女 | D8: 450603103 | E8: 防城港市北部湾高级中学 | F8: 高中英语教师 | G8: 4506000103 | H8: 2 | I8: 125.5 | J8: 82.20 | K8: 74.42 | L8: 2
A9: 6 | B9: 韦义升 | C9: 男 | D9: 450606816 | E9: 防城港市北部湾高级中学 | F9: 高中生物教师 | G9: 4506000105 | H9: 1 | I9: 151 | J9: 74.00 | K9: =I9/2*0.4+J9*0.6 -> 74.60 | L9: 2 | M9: 排名第1的考生自愿放弃考察，由排名第2的考生依次进行递补
A10: 7 | B10: 兰礼菊 | C10: 女 | D10: 450606209 | E10: 防城港市北部湾高级中学 | F10: 高中信息技术教师 | G10: 4506000107 | H10: 1 | I10: 141.5 | J10: 86.80 | K10: 80.38 | L10: 1
A11: 8 | B11: 丁自辉 | C11: 男 | D11: 450601610 | E11: 防城港市北部湾高级中学 | F11: 高中体育教师 | G11: 4506000108 | H11: 2 | I11: 143.0 | J11: 83.00 | K11: =I11/2*0.4+J11*0.6 -> 78.40 | L11: 1
A12: 9 | B12: 王善伟 | C12: 男 | D12: 450601307 | E12: 防城港市北部湾高级中学 | F12: 高中体育教师 | G12: 4506000108 | H12: 2 | I12: 132.0 | J12: 86.00 | K12: 78.00 | L12: 2
A13: 10 | B13: 郭思遥 | C13: 女 | D13: 450606422 | E13: 防城港市高级中学 | F13: 高中语文教师 | G13: 4506000201 | H13: 2 | I13: 150.0 | J13: 86.00 | K13: 81.60 | L13: 1
A14: 11 | B14: 唐卉 | C14: 女 | D14: 450608005 | E14: 防城港市高级中学 | F14: 高中语文教师 | G14: 4506000201 | H14: 2 | I14: 140.5 | J14: 81.00 | K14: 76.70 | L14: 2
A15: 12 | B15: 陈伟杰 | C15: 男 | D15: 450605909 | E15: 防城港市高级中学 | F15: 高中数学教师 | G15: 4506000202 | H15: 3 | I15: 140.5 | J15: 80.20 | K15: 76.22 | L15: 2
A16: 13 | B16: 吴恬恬 | C16: 女 | D16: 450603003 | E16: 防城港市高级中学 | F16: 高中数学教师 | G16: 4506000202 | H16: 3 | I16: 142.0 | J16: 79.40 | K16: 76.04 | L16: 3
A17: 14 | B17: 杨娟宁 | C17: 女 | D17: 450602521 | E17: 防城港市高级中学 | F17: 高中英语教师 | G17: 4506000203 | H17: 3 | I17: 146.5 | J17: 87.80 | K17: 81.98 | L17: 1
A18: 15 | B18: 谭玲 | C18: 女 | D18: 450604921 | E18: 防城港市高级中学 | F18: 高中英语教师 | G18: 4506000203 | H18: 3 | I18: 144.0 | J18: 87.00 | K18: 81.00 | L18: 2
A19: 16 | B19: 韦增倡 | C19: 男 | D19: 450604911 | E19: 防城港市高级中学 | F19: 高中物理教师 | G19: 4506000204 | H19: 1 | I19: 130.0 | J19: 79.00 | K19: 73.40 | L19: 2
A20: 17 | B20: 陈广琼 | C20: 女 | D20: 450602301 | E20: 防城港市高级中学 | F20: 高中化学教师 | G20: 4506000205 | H20: 3 | I20: 134.0 | J20: 83.00 | K20: 76.60 | L20: 1
A21: 18 | B21: 吴迪 | C21: 女 | D21: 450604223 | E21: 防城港市高级中学 | F21: 高中化学教师 | G21: 4506000205 | H21: 3 | I21: 136.0 | J21: 76.80 | K21: 73.28 | L21: 3
A22: 19 | B22: 钟岳岩 | C22: 男 | D22: 450601606 | E22: 防城港市高级中学 | F22: 高中政治教师 | G22: 4506000207 | H22: 1 | I22: 130.5 | J22: 85.00 | K22: =I22/2*0.4+J22*0.6 -> 77.10 | L22: 1
A23: 20 | B23: 李绍鑫 | C23: 男 | D23: 450604128 | E23: 防城港市高级中学 | F23: 高中书法教师 | G23: 4506000210 | H23: 1 | I23: 136.5 | J23: 75.00 | K23: 72.30 | L23: 1
A24: 21 | B24: 黄薏名 | C24: 女 | D24: 450602405 | E24: 防城港市实验高级中学 | F24: 高中语文教师 | G24: 4506000301 | H24: 1 | I24: 131.0 | J24: 81.20 | K24: 74.92 | L24: 1
A25: 22 | B25: 黄广博 | C25: 男 | D25: 450607812 | E25: 防城港市实验高级中学 | F25: 高中物理教师 | G25: 4506000304 | H25: 2 | I25: 133.0 | J25: 83.20 | K25: 76.52 | L25: 1
A26: 23 | B26: 钟尉宁 | C26: 女 | D26: 450605710 | E26: 防城港市实验高级中学 | F26: 高中物理教师 | G26: 4506000304 | H26: 2 | I26: 124.5 | J26: 85.40 | K26: 76.14 | L26: 2
A27: 24 | B27: 周才伟 | C27: 男 | D27: 450605306 | E27: 防城港市实验高级中学 | F27: 高中化学教师 | G27: 4506000305 | H27: 1 | I27: 124.0 | J27: 79.00 | K27: 72.20 | L27: 1
A28: 25 | B28: 陈德旭 | C28: 男 | D28: 450601918 | E28: 防城港市实验高级中学 | F28: 高中生物教师 | G28: 4506000306 | H28: 2 | I28: 150.0 | J28: 82.80 | K28: 79.68 | L28: 1
A29: 26 | B29: 陈艳书 | C29: 女 | D29: 450606903 | E29: 防城港市实验高级中学 | F29: 高中生物教师 | G29: 4506000306 | H29: 2 | I29: 140 | J29: 84.00 | K29: =I29/2*0.4+J29*0.6 -> 78.40 | L29: 3 | M29: 排名第2的考生自愿放弃考察，由排名第3的考生依次进行递补
A30: 27 | B30: 劳海莲 | C30: 女 | D30: 450606317 | E30: 防城港市实验高级中学 | F30: 高中政治教师 | G30: 4506000307 | H30: 1 | I30: 150.5 | J30: 86.20 | K30: 81.82 | L30: 1
A31: 28 | B31: 吴明林 | C31: 女 | D31: 450607814 | E31: 防城港市实验高级中学 | F31: 高中地理教师 | G31: 4506000309 | H31: 1 | I31: 135.5 | J31: 85.00 | K31: 78.10 | L31: 1
A32: 29 | B32: 范浩志 | C32: 男 | D32: 450606716 | E32: 防城港市实验高级中学 | F32: 高中体育教师 | G32: 4506000312 | H32: 1 | I32: 151.0 | J32: 87.20 | K32: 82.52 | L32: 1
A33: 30 | B33: 钟建蓉 | C33: 女 | D33: 450607710 | E33: 防城港市防城中学 | F33: 高中数学教师 | G33: 4506000401 | H33: 2 | I33: 129.5 | J33: 82.20 | K33: 75.22 | L33: 1
A34: 31 | B34: 黄崔芸 | C34: 女 | D34: 450608228 | E34: 防城港市防城中学 | F34: 高中日语教师 | G34: 4506000402 | H34: 1 | I34: 155.0 | J34: 84.80 | K34: 81.88 | L34: 1
A35: 32 | B35: 刘德苹 | C35: 女 | D35: 450601509 | E35: 防城港市防城中学 | F35: 高中物理教师 | G35: 4506000403 | H35: 1 | I35: 155.0 | J35: 85.60 | K35: =I35/2*0.4+J35*0.6 -> 82.36 | L35: 1
A36: 33 | B36: 严梅嫦 | C36: 女 | D36: 450605729 | E36: 防城港市防城中学 | F36: 高中地理教师 | G36: 4506000406 | H36: 1 | I36: 150.5 | J36: 83.00 | K36: 79.90 | L36: 1
A37: 34 | B37: 张立渊 | C37: 男 | D37: 450607430 | E37: 防城港市防城中学 | F37: 高中书法教师 | G37: 4506000408 | H37: 1 | I37: 105.5 | J37: 77.80 | K37: 67.78 | L37: 1
A38: 35 | B38: 谭象月 | C38: 女 | D38: 450600806 | E38: 防城港市第一中学 | F38: 初中语文教师 | G38: 4506000501 | H38: 4 | I38: 155.5 | J38: 83.00 | K38: 80.90 | L38: 1
A39: 36 | B39: 王张楠 | C39: 男 | D39: 450604207 | E39: 防城港市第一中学 | F39: 初中语文教师 | G39: 4506000501 | H39: 4 | I39: 153.5 | J39: 83.20 | K39: 80.62 | L39: 2
A40: 37 | B40: 张佩琼 | C40: 女 | D40: 450603810 | E40: 防城港市第一中学 | F40: 初中语文教师 | G40: 4506000501 | H40: 4 | I40: 149.0 | J40: 83.20 | K40: 79.72 | L40: 3
A41: 38 | B41: 陈佳伶 | C41: 女 | D41: 450605809 | E41: 防城港市第一中学 | F41: 初中语文教师 | G41: 4506000501 | H41: 4 | I41: 145.5 | J41: 83.40 | K41: 79.14 | L41: 4
A42: 39 | B42: 胡克龙 | C42: 男 | D42: 450605727 | E42: 防城港市第一中学 | F42: 初中数学教师 | G42: 4506000502 | H42: 2 | I42: 135.0 | J42: 85.80 | K42: 78.48 | L42: 1
A43: 40 | B43: 郭庆集 | C43: 男 | D43: 450600714 | E43: 防城港市第一中学 | F43: 初中数学教师 | G43: 4506000502 | H43: 2 | I43: 144.0 | J43: 80.20 | K43: 76.92 | L43: 2
A44: 41 | B44: 吴海萍 | C44: 女 | D44: 450600628 | E44: 防城港市第一中学 | F44: 初中生物教师 | G44: 4506000503 | H44: 1 | I44: 143.5 | J44: 82.00 | K44: 77.90 | L44: 1
A45: 42 | B45: 玉金萍 | C45: 女 | D45: 450603409 | E45: 防城港市第一中学 | F45: 初中地理教师 | G45: 4506000504 | H45: 1 | I45: 146.5 | J45: 83.80 | K45: 79.58 | L45: 1
A46: 43 | B46: 陆永晶 | C46: 女 | D46: 450601108 | E46: 防城港市第一中学 | F46: 初中音乐教师 | G46: 4506000506 | H46: 1 | I46: 109.5 | J46: 79.80 | K46: =I46/2*0.4+J46*0.6 -> 69.78 | L46: 1
A47: 44 | B47: 潘坤婷 | C47: 女 | D47: 450604401 | E47: 防城港市第一中学 | F47: 初中美术教师 | G47: 4506000507 | H47: 1 | I47: 141.0 | J47: 82.40 | K47: 77.64 | L47: 1
A48: 45 | B48: 张杰 | C48: 女 | D48: 450601725 | E48: 防城港市第一中学 | F48: 初中心理健康教师 | G48: 4506000508 | H48: 1 | I48: 151.0 | J48: 83.40 | K48: 80.24 | L48: 1
A49: 46 | B49: 陈泽 | C49: 男 | D49: 450606026 | E49: 防城港市第二中学（中学部） | F49: 初中数学教师 | G49: 4506000601 | H49: 1 | I49: 150.0 | J49: 80.60 | K49: 78.36 | L49: 1
A50: 47 | B50: 郭日豪 | C50: 女 | D50: 450603905 | E50: 防城港市第二中学（中学部） | F50: 初中英语教师 | G50: 4506000602 | H50: 1 | I50: 138.0 | J50: 83.60 | K50: 77.76 | L50: 1
A51: 48 | B51: 吴鑫铭 | C51: 女 | D51: 450601322 | E51: 防城港市第二中学（小学部） | F51: 小学语文教师 | G51: 4506000605 | H51: 2 | I51: 139.5 | J51: 83.80 | K51: 78.18 | L51: 2
A52: 49 | B52: 朱华乐 | C52: 女 | D52: 450604106 | E52: 防城港市第二中学（小学部） | F52: 小学数学教师 | G52: 4506000606 | H52: 1 | I52: 135.0 | J52: 84.20 | K52: 77.52 | L52: 1
A53: 50 | B53: 韦小玉 | C53: 女 | D53: 450603717 | E53: 防城港市第二中学（小学部） | F53: 小学体育教师 | G53: 4506000607 | H53: 1 | I53: 133.0 | J53: 81.20 | K53: 75.32 | L53: 1
A54: 51 | B54: 廖彩娟 | C54: 女 | D54: 450600816 | E54: 防城港市实验小学 | F54: 小学语文教师 | G54: 4506000701 | H54: 4 | I54: 156.5 | J54: 82.40 | K54: 80.74 | L54: 1
A55: 52 | B55: 王颖 | C55: 女 | D55: 450607006 | E55: 防城港市实验小学 | F55: 小学语文教师 | G55: 4506000701 | H55: 4 | I55: 141.0 | J55: 86.40 | K55: 80.04 | L55: 2
A56: 53 | B56: 凌利丽 | C56: 女 | D56: 450602701 | E56: 防城港市实验小学 | F56: 小学语文教师 | G56: 4506000701 | H56: 4 | I56: 141.5 | J56: 86.00 | K56: 79.90 | L56: 3
A57: 54 | B57: 李春晓 | C57: 女 | D57: 450603618 | E57: 防城港市实验小学 | F57: 小学语文教师 | G57: 4506000701 | H57: 4 | I57: 149.0 | J57: 80.80 | K57: 78.28 | L57: 4
A58: 55 | B58: 邓梁 | C58: 女 | D58: 450603721 | E58: 防城港市实验小学 | F58: 小学英语教师 | G58: 4506000704 | H58: 1 | I58: 149.5 | J58: 86.40 | K58: =I58/2*0.4+J58*0.6 -> 81.74 | L58: 1
A59: 56 | B59: 张岚 | C59: 女 | D59: 450605920 | E59: 防城港市苗壮幼儿园 | F59: 幼儿园教师 | G59: 4506000901 | H59: 4 | I59: 155.0 | J59: 86.40 | K59: =I59/2*0.4+J59*0.6 -> 82.84 | L59: 1
A60: 57 | B60: 曾菊珍 | C60: 女 | D60: 450605428 | E60: 防城港市苗壮幼儿园 | F60: 幼儿园教师 | G60: 4506000901 | H60: 4 | I60: 143.0 | J60: 86.00 | K60: =I60/2*0.4+J60*0.6 -> 80.20 | L60: 2
A61: 58 | B61: 张小妹 | C61: 女 | D61: 450601912 | E61: 防城港市苗壮幼儿园 | F61: 幼儿园教师 | G61: 4506000901 | H61: 4 | I61: 138.0 | J61: 87.60 | K61: =I61/2*0.4+J61*0.6 -> 80.16 | L61: 3
A62: 59 | B62: 陈文文 | C62: 女 | D62: 450605425 | E62: 防城港市苗壮幼儿园 | F62: 幼儿园教师 | G62: 4506000901 | H62: 4 | I62: 139.0 | J62: 87.20 | K62: =I62/2*0.4+J62*0.6 -> 80.12 | L62: 4
